[Event "Swiss Youth-ch U14 2023"]
[Site "Olten"]
[Date "2023.05.26"]
[Round "2.8"]
[White "Gafner, Lancelot"]
[Black "Haas, Anthony"]
[Result "0-1"]
[ECO "C42"]
[WhiteElo "1641"]
[BlackElo "1530"]
[Annotator "NA RC"]
[PlyCount "92"]
[EventDate "2023.05.26"]
[EventType "swiss"]
[EventCountry "SUI"]
[SourceTitle "playchess.com"]
[Source "ChessBase"]
[SourceQuality "1"]
[TimeControl "5400+30"]

1. e4 {[%emt 0:00:02]} e5 {[%emt 0:00:06]} 2. Nf3 {[%emt 0:00:05]} Nf6 {[%emt 0:00:02]} 3. Nxe5 {[%emt 0:00:12]} d6 {[%emt 0:00:04]} 4. Nf3 {[%emt 0:00:14]} Nxe4 {[%emt 0:00:05]} 5. d4 {[%emt 0:00:12]} d5 {[%emt 0:00:05]} 6. Bd3 {[%emt 0:00:31]} Bd6 {[%emt 0:00:17]} 7. O-O {[%emt 0:02:57]} O-O {[%emt 0:00:20]} 8. Re1 {[%emt 0:01:04]} Re8 {[%emt 0:02:16]} 9. h3 {[%emt 0:03:55]} Nd7 {[%emt 0:04:24]} 10. c4 {[%emt 0:01:20]} c6 {[%emt 0:00:07]} 11. Nc3 {[%emt 0:00:15]} Ndf6 {[%emt 0:03:58]} 12. Qc2 {[%emt 0:08:46]} Nxc3 {[%emt 0:02:17]} 13. bxc3 {[%emt 0:00:28]} Rxe1+ {[%emt 0:02:42]} 14. Nxe1 {[%emt 0:00:32]} h6 {[%emt 0:00:08]} 15. Nf3 {[%emt 0:04:52]} Be6 {[%emt 0:02:06]} 16. c5 {[%emt 0:09:39]} Bc7 {[%emt 0:00:29]} 17. a4 {[%emt 0:05:06]} b6 {[%emt 0:11:41]} 18. Ba3 {[%emt 0:02:34]} Nd7 {[%emt 0:01:16]} 19. cxb6 {[%emt 0:01:20]} axb6 {[%emt 0:00:19]} 20. Bb2 {[%emt 0:03:05]} Nf6 {[%emt 0:24:40]} 21. Qe2 {[%emt 0:07:29]} Nh5 {[%emt 0:11:56]} 22. Bc2 {[%emt 0:04:28]} Nf4 {[%emt 0:02:21]} 23. Qe3 {[%emt 0:02:18]} Qf6 {[%emt 0:04:08]} 24. Re1 {[%emt 0:07:38]} Re8 {[%emt 0:01:15]} 25. Ba1 {[%emt 0:01:59]} Nxg2 {[%emt 0:01:46]} 26. Kxg2 {[%emt 0:06:11]} Bxh3+ {[%emt 0:00:08]} 27. Kxh3 {[%emt 0:00:05]} Rxe3 {[%emt 0:00:17]} 28. Rxe3 {[%emt 0:00:03]} g5 {[%emt 0:00:26]} 29. Kg2 {[%emt 0:02:02]} Qf4 {[%emt 0:03:23]} 30. Ne5 {[%emt 0:06:25]} Bxe5 {[%emt 0:02:19]} 31. dxe5 {[%emt 0:00:30]} Qc4 {[%emt 0:03:06]} 32. Re1 {[%emt 0:03:16]} Qa2 {[%emt 0:04:03]} 33. Rc1 {[%emt 0:01:12]} Qc4 {[%emt 0:02:57]} 34. Re1 {[%emt 0:01:11]} Qf4 {[%emt 0:00:28]} 35. Bb2 {[%emt 0:01:08]} Qd2 {[%emt 0:01:02]} 36. Rc1 {[%emt 0:00:14]} h5 {[%emt 0:00:39]} 37. Ba3 {[%emt 0:01:21]} Qf4 {[%emt 0:01:02]} 38. Re1 {[%emt 0:01:25]} Qd2 {[%emt 0:01:30]} 39. Rc1 {[%emt 0:00:30]} Kg7 {[%emt 0:00:06]} 40. Bb2 {[%emt 0:00:16]} h4 {[%emt 0:00:29]} 41. Kf3 {[%emt 0:06:45]} Kh6 {[%emt 0:00:56]} 42. Kg2 {[%emt 0:01:05]} g4 {[%emt 0:01:57]} 43. Ba3 {[%emt 0:02:34]} c5 {[%emt 0:02:07]} 44. Bb1 {[%emt 0:00:31]} h3+ {[%emt 0:02:38]} 45. Kg3 {[%emt 0:03:03]} Kg5 {[%emt 0:00:11]} 46. f3 {[%emt 0:02:08]} Qg2# {[%emt 0:00:12]} 0-1

[Event "Swiss Youth-ch U14 2023"]
[Site "Olten"]
[Date "2023.05.27"]
[Round "3.1"]
[White "Gut, Lionel"]
[Black "Malli, Suvirr"]
[Result "1/2-1/2"]
[ECO "D10"]
[WhiteElo "2054"]
[BlackElo "2114"]
[Annotator "TA"]
[PlyCount "91"]
[EventDate "2023.05.26"]
[EventType "swiss"]
[EventCountry "SUI"]
[SourceTitle "playchess.com"]
[Source "ChessBase"]
[SourceQuality "1"]
[TimeControl "5400+30"]

{[%evp 15,91,31,32,41,37,25,62,42,62,75,60,45,93,67,102,100,94,100,133,92,137,79,70,84,132,131,146,135,146,146,146,147,152,136,162,152,152,148,152,152,161,151,182,170,173,119,114,81,116,82,79,50,82,50,50,57,56,26,29,24,31,35,33,11,11,11,16,12,15,0,9,0,0,0,0,0,16,0]} 1. d4 {[%emt 0:00:06]} d5 {[%emt 0:00:30]} 2. c4 {[%emt 0:00:04]} c6 {[%emt 0:00:19]} 3. cxd5 {[%emt 0:00:03]} cxd5 {[%emt 0:00:15]} 4. Nc3 {[%emt 0:00:05]} Nf6 {[%emt 0:00:19]} 5. Bf4 {[%emt 0:00:10]} Nc6 {[%emt 0:00:28]} 6. e3 {[%emt 0:00:06]} a6 {[%emt 0:00:06]} 7. Bd3 {[%emt 0:00:04]} e6 {[%emt 0:15:13]} 8. Rc1 {[%emt 0:00:11] 8.Rc1 has lost popularity.} Bd6 {[%emt 0:00:34]} 9. Bxd6 {[%emt 0:00:04] D10: Slav Defence: 3 cxd5 (without early Nf3) and 3 Nc3.} Qxd6 {[%emt 0:00:08]} 10. f4 {[%emt 0:00:03]} h6 {[%emt 0:06:00]} 11. Nf3 {[%emt 0:04:05] White is slightly better.} Bd7 {[%emt 0:05:43]} 12. Ne5 {[%emt 0:03:18] [#]} Qb4 $146 {[%emt 0:17:27]} ({Predecessor:} 12... g5 13. Qf3 g4 14. Qf2 h5 15. Qh4 Qe7 16. O-O Ng8 17. Qf2 Nf6 18. a3 h4 {1-0 Hernandez Ramos,D (2078)-Lopez de Turiso,J (1913) San Sebastian de los Reyes op 20th 2018 (2)}) 13. O-O {[%emt 0:06:45]} O-O {[%emt 0:13:11]} (13... Qxb2 $14 {was preferrable.} 14. Na4 Qa3) 14. Rc2 {[%emt 0:04:51][%cal Bc1c2,Bc2g2,Bg2f2,Bf2f4][%mdl 32]} Rac8 {[%emt 0:03:20]} 15. g4 {[%emt 0:03:49] Threatens to win with g5.} Nxe5 {[%emt 0:06:38]} 16. fxe5 {[%emt 0:00:30]} Nh7 {[%emt 0:03:42]} 17. Rg2 {[%emt 0:02:47][%cal Og4g5] g5! is the strong threat.} g6 {[%emt 0:02:25]} (17... Ng5 $2 18. h4 Qe7 19. hxg5 $18) 18. a3 {[%emt 0:04:30]} (18. h4 $142) 18... Qe7 $16 {[%emt 0:00:30]} 19. Qe1 {[%emt 0:00:16] Against Qh4} Kh8 {[%emt 0:04:57]} ({Black should try} 19... f6) 20. Qg3 {[%emt 0:03:25]} Bc6 {[%emt 0:02:10]} 21. h4 {[%emt 0:10:28]} Kg7 {[%emt 0:01:43] Black is weak on the dark squares} 22. Rgf2 {[%emt 0:06:25]} Qd8 {[%emt 0:02:55]} 23. Rf4 {[%emt 0:15:27] White is much more active.} Rc7 {[%emt 0:05:21]} 24. R1f2 {[%emt 0:09:39]} Rd7 {[%emt 0:02:06]} 25. R4f3 {[%emt 0:07:46]} Rc7 {[%emt 0:00:42]} 26. Kh2 {[%emt 0:07:10]} Rd7 {[%emt 0:00:57]} 27. Rf1 {[%emt 0:05:33]} Rc7 {[%emt 0:00:12]} 28. Qf2 {[%emt 0:02:07]} Qc8 {[%emt 0:04:56]} 29. h5 {[%emt 0:03:01]} Qd8 {[%emt 0:01:11]} 30. hxg6 {[%emt 0:02:01]} ({White should play} 30. Kg3 $18) 30... fxg6 {[%emt 0:00:06]} 31. Rxf8 {[%emt 0:00:08]} Nxf8 {[%emt 0:00:07]} 32. Kg3 {[%emt 0:00:57]} Nh7 {[%emt 0:00:48]} 33. Qf4 {[%emt 0:00:27]} Qg5 {[%emt 0:00:49]} 34. Qxg5 {[%emt 0:00:10]} (34. Kg2 {looks sharper.} Qe7 35. Rh1 Qg5 36. Qg3) 34... Nxg5 {[%emt 0:00:12]} 35. Rf6 {[%emt 0:00:21]} Be8 {[%emt 0:00:14]} 36. e4 {[%emt 0:00:48]} dxe4 {[%emt 0:00:52]} 37. Nxe4 {[%emt 0:00:11]} Nxe4+ {[%emt 0:00:23]} 38. Bxe4 $11 {[%emt 0:00:02][%mdl 4096] Endgame KRB-KRB} Bf7 {[%emt 0:00:12]} 39. Rf3 {[%emt 0:00:20]} b5 {[%emt 0:01:17] The position is equal.} 40. Rc3 {[%emt 0:00:13]} Rd7 {[%emt 0:00:20]} 41. Rd3 {[%emt 0:00:25]} Rc7 {[%emt 0:00:29]} 42. b4 {[%emt 0:00:27]} Kf8 {[%emt 0:00:32]} 43. Kf3 {[%emt 0:00:28]} Ke7 {[%emt 0:00:39]} 44. Ke3 {[%emt 0:00:53]} g5 {[%emt 0:00:49]} 45. Kd2 {[%emt 0:01:14]} Rd7 {[%emt 0:00:16]} 46. Ke3 {[%emt 0:01:37] White really could win this.   Weighted Error Value: White=0.15 (very precise) /Black=0.15 (very precise)} 1/2-1/2

[Event "Swiss Youth-ch U14 2023"]
[Site "Olten"]
[Date "2023.05.27"]
[Round "3.2"]
[White "Kanana, Ziad"]
[Black "Gut, Raphael"]
[Result "0-1"]
[ECO "B91"]
[WhiteElo "1828"]
[BlackElo "1817"]
[Annotator "NA RC"]
[PlyCount "150"]
[EventDate "2023.05.26"]
[EventType "swiss"]
[EventCountry "SUI"]
[SourceTitle "playchess.com"]
[Source "ChessBase"]
[SourceQuality "1"]
[TimeControl "5400+30"]

1. e4 {[%emt 0:01:14]} c5 {[%emt 0:00:03]} 2. Nf3 {[%emt 0:00:18]} d6 {[%emt 0:00:02]} 3. d4 {[%emt 0:00:05]} cxd4 {[%emt 0:00:03]} 4. Nxd4 {[%emt 0:00:02]} Nf6 {[%emt 0:00:04]} 5. Nc3 {[%emt 0:00:08]} a6 {[%emt 0:00:02]} 6. g3 {[%emt 0:00:04]} e5 {[%emt 0:00:03]} 7. Nde2 {[%emt 0:00:05] 7.Nb3 is the modern continuation.} Be7 {[%emt 0:00:03]} 8. Bg2 {[%emt 0:00:18]} h5 {[%emt 0:00:08]} 9. h3 {[%emt 0:02:24]} b5 {[%emt 0:00:04]} 10. Nd5 {[%emt 0:04:48]} Nxd5 {[%emt 0:01:43]} 11. Qxd5 {[%emt 0:00:18]} Ra7 {[%emt 0:00:24]} 12. Qd3 {[%emt 0:10:09]} (12. Be3 $5 {[%cal Re3a7]} Be6 13. Qd2 $14) 12... Nd7 {[%emt 0:01:37]} 13. Nc3 {[%emt 0:02:58]} Nf6 {[%emt 0:00:06]} 14. Be3 {[%emt 0:10:08]} Rb7 {[%emt 0:00:10]} 15. O-O {[%emt 0:13:17] [#]} Qc7 $146 {[%emt 0:04:08]} ({Predecessor:} 15... O-O 16. Rfd1 b4 17. Ne2 Be6 18. Qxa6 Qc8 19. b3 Bd7 20. c4 Bc6 21. a3 bxa3 22. Rxa3 Nxe4 {0-1 Engel,L (2557)-Keymer,V (2672) German Masters 2022 (3)}) 16. f4 {[%emt 0:06:18]} O-O {[%emt 0:12:27]} 17. f5 {[%emt 0:08:28]} Bd7 {[%emt 0:04:29]} (17... Qc4 $11) 18. Bg5 {[%emt 0:10:17]} Qc4 {[%emt 0:04:03]} 19. Bxf6 {[%emt 0:05:05]} Qxd3 {[%emt 0:00:23]} 20. cxd3 {[%emt 0:00:22]} Bxf6 {[%emt 0:00:40]} 21. Nd5 {[%emt 0:05:04]} Kh7 {[%emt 0:08:07]} 22. Nxf6+ {[%emt 0:02:34]} gxf6 {[%emt 0:00:04]} 23. Rac1 {[%emt 0:01:42]} b4 {[%emt 0:01:42]} 24. Bf3 {[%emt 0:00:40]} Kh6 {[%emt 0:04:52]} 25. Kf2 {[%emt 0:03:38]} Bb5 {[%emt 0:02:17]} 26. Ke3 {[%emt 0:00:08]} Rg8 {[%emt 0:00:16]} 27. g4 {[%emt 0:00:52]} h4 {[%emt 0:00:31] [#]} 28. Bd1 $1 {[%emt 0:00:44]} Rd8 {[%emt 0:13:06]} 29. Bb3 {[%emt 0:00:22]} Kg5 {[%emt 0:03:27]} (29... Kg7 $16 {was called for.} 30. Rf2 Ra7) 30. Rc2 {[%emt 0:01:13]} Kh6 {[%emt 0:00:48]} 31. Rfc1 {[%emt 0:00:43]} Rbd7 {[%emt 0:00:06]} 32. Bd5 {[%emt 0:01:14]} Kg7 {[%emt 0:00:24]} 33. Rd1 {[%emt 0:02:03]} Ba4 {[%emt 0:03:23]} 34. b3 {[%emt 0:01:01]} Bb5 {[%emt 0:00:04]} 35. Bc4 {[%emt 0:00:29]} Rc7 {[%emt 0:03:14]} 36. Rdc1 {[%emt 0:00:53]} Rdc8 {[%emt 0:01:54]} 37. Rg2 {[%emt 0:02:33]} Kh6 {[%emt 0:02:37]} 38. Rcg1 {[%emt 0:00:01]} Kg5 {[%emt 0:01:45]} 39. Rc2 {[%emt 0:00:01]} Kh6 {[%emt 0:00:56]} 40. Rgc1 {[%emt 0:00:33]} Kg7 {[%emt 0:00:15]} 41. Ra1 {[%emt 0:03:53]} Kh6 {[%emt 0:05:05]} 42. Kd2 {[%emt 0:00:36]} Kg7 {[%emt 0:01:10]} 43. a4 {[%emt 0:00:52]} bxa3 {[%emt 0:00:18]} 44. Rxa3 {[%emt 0:00:17]} Kh6 {[%emt 0:00:18]} 45. Ra1 {[%emt 0:01:08]} Kg5 {[%emt 0:02:47]} 46. Ke3 {[%emt 0:00:01]} Kh6 {[%emt 0:00:41]} 47. Rac1 {[%emt 0:00:59]} Kg5 {[%emt 0:00:20]} 48. Kf3 {[%emt 0:00:35]} Kh6 {[%emt 0:00:56]} 49. Rf1 {[%emt 0:02:00]} Kg5 {[%emt 0:00:45]} 50. Ke2 {[%emt 0:00:01]} Rb8 {[%emt 0:01:16]} 51. Ke3 {[%emt 0:00:45]} Bxc4 {[%emt 0:05:47]} 52. bxc4 {[%emt 0:00:49]} Rcb7 {[%emt 0:00:16]} 53. Rff2 {[%emt 0:00:42]} Rb1 {[%emt 0:00:24]} 54. Ra2 {[%emt 0:00:40]} R8b6 {[%emt 0:00:29]} 55. Rh2 {[%emt 0:00:27]} Re1+ {[%emt 0:00:22]} 56. Kf3 {[%emt 0:00:35]} Rb3 {[%emt 0:01:43]} 57. Rad2 {[%emt 0:00:01]} a5 {[%emt 0:00:10]} 58. Rhe2 {[%emt 0:01:07]} Ra1 {[%emt 0:01:37]} 59. Ke3 {[%emt 0:00:22]} a4 {[%emt 0:00:52]} 60. Ra2 {[%emt 0:00:40]} Rbb1 {[%emt 0:00:17]} 61. Reb2 {[%emt 0:00:39]} a3 {[%emt 0:05:09]} 62. Rxa3 {[%emt 0:00:30]} Re1+ {[%emt 0:00:03]} 63. Kf2 {[%emt 0:00:28]} Rxa3 {[%emt 0:00:23]} 64. Kxe1 {[%emt 0:00:01]} Rxd3 {[%emt 0:00:02]} 65. Rh2 {[%emt 0:00:55]} Re3+ {[%emt 0:00:11]} 66. Kd2 {[%emt 0:00:15]} Rxe4 {[%emt 0:00:14]} 67. Kd3 {[%emt 0:00:12]} Rd4+ {[%emt 0:00:09]} 68. Ke3 {[%emt 0:00:17]} Rxc4 {[%emt 0:00:14]} 69. Rb2 {[%emt 0:01:00]} Rc3+ {[%emt 0:00:18] Skewer} 70. Ke4 {[%emt 0:00:29]} Rxh3 {[%emt 0:01:05]} 71. Rb8 {[%emt 0:00:06]} Kxg4 {[%emt 0:02:36]} 72. Rg8+ {[%emt 0:00:05]} Kh5 {[%emt 0:00:02]} 73. Rg7 {[%emt 0:01:30]} Rg3 {[%emt 0:01:21]} 74. Rxf7 {[%emt 0:00:12]} Rg4+ {[%emt 0:00:10]} 75. Ke3 {[%emt 0:00:42]} Kg5 $19 {[%emt 0:00:07]} 0-1

[Event "Swiss Youth-ch U14 2023"]
[Site "Olten"]
[Date "2023.05.27"]
[Round "3.3"]
[White "Haas, Anthony"]
[Black "Udipi, Kala Kishan"]
[Result "1/2-1/2"]
[ECO "E08"]
[WhiteElo "1530"]
[BlackElo "1904"]
[Annotator "RC"]
[PlyCount "69"]
[EventDate "2023.05.26"]
[EventType "swiss"]
[EventCountry "SUI"]
[SourceTitle "playchess.com"]
[Source "ChessBase"]
[SourceQuality "1"]
[TimeControl "5400+30"]

1. d4 {[%emt 0:00:03]} d5 {[%emt 0:00:07]} 2. c4 {[%emt 0:00:04]} e6 {[%emt 0:00:05]} 3. g3 {[%emt 0:00:04]} Nf6 {[%emt 0:00:08]} 4. Bg2 {[%emt 0:00:05]} Be7 {[%emt 0:00:19]} 5. Nf3 {[%emt 0:00:04]} O-O {[%emt 0:00:19]} 6. O-O {[%emt 0:00:05]} c6 {[%emt 0:00:08]} 7. Qc2 {[%emt 0:00:09]} b6 {[%emt 0:00:03]} 8. b3 {[%emt 0:00:20]} Bb7 {[%emt 0:02:56]} 9. Nc3 {[%emt 0:01:04]} Nbd7 {[%emt 0:00:28]} 10. e4 {[%emt 0:00:32]} Rc8 {[%emt 0:00:28]} 11. Rd1 {[%emt 0:08:50]} Ba6 {[%emt 0:04:17]} 12. Bf1 {[%emt 0:10:32]} Bb7 {[%emt 0:05:40]} 13. Bg2 {[%emt 0:00:16]} a5 {[%emt 0:06:26]} 14. Bb2 {[%emt 0:24:35]} Rc7 {[%emt 0:02:04]} 15. Rac1 {[%emt 0:06:05]} Qa8 {[%emt 0:01:34]} 16. Nd2 {[%emt 0:11:09]} Rfc8 {[%emt 0:02:50]} 17. a3 {[%emt 0:05:10]} Nb8 {[%emt 0:05:06]} 18. e5 {[%emt 0:07:00]} Ne8 {[%emt 0:02:04]} 19. Ne2 {[%emt 0:03:48]} c5 {[%emt 0:11:33]} 20. Qb1 {[%emt 0:02:35]} Nd7 {[%emt 0:03:40]} 21. cxd5 {[%emt 0:02:07]} Bxd5 {[%emt 0:02:30]} 22. Bxd5 {[%emt 0:00:17]} Qxd5 {[%emt 0:00:34]} 23. Nf4 {[%emt 0:00:47]} Qa8 {[%emt 0:02:22]} 24. a4 {[%emt 0:06:11]} Bg5 {[%emt 0:04:29]} 25. Ne4 {[%emt 0:02:36]} Bxf4 {[%emt 0:01:27]} 26. gxf4 {[%emt 0:00:04]} cxd4 {[%emt 0:02:26]} 27. Rxc7 {[%emt 0:01:42]} Nxc7 {[%emt 0:02:22]} 28. Rxd4 {[%emt 0:04:06]} Nd5 {[%emt 0:00:58]} 29. Qd1 {[%emt 0:02:32]} Rd8 {[%emt 0:16:26]} 30. Nc3 {[%emt 0:00:32]} Nc5 {[%emt 0:05:46]} 31. f5 {[%emt 0:01:07]} Rd7 {[%emt 0:05:45]} 32. f6 {[%emt 0:00:49]} Nxc3 {[%emt 0:05:24]} 33. Bxc3 {[%emt 0:00:29]} Rxd4 {[%emt 0:00:28]} 34. Bxd4 {[%emt 0:00:15]} Qd5 {[%emt 0:01:58]} 35. Qg4 {[%emt 0:00:27]} 1/2-1/2

[Event "Swiss Youth-ch U14 2023"]
[Site "Olten"]
[Date "2023.05.27"]
[Round "3.4"]
[White "Breyer, Philippe"]
[Black "Van Aepelen, Nikolai"]
[Result "1-0"]
[ECO "B14"]
[WhiteElo "1766"]
[BlackElo "1623"]
[Annotator "NA RC"]
[PlyCount "77"]
[EventDate "2023.05.26"]
[EventType "swiss"]
[EventCountry "SUI"]
[SourceTitle "playchess.com"]
[Source "ChessBase"]
[SourceQuality "1"]
[TimeControl "5400+30"]

1. e4 {[%emt 0:00:02]} c6 {[%emt 0:00:09]} 2. d4 {[%emt 0:00:02]} d5 {[%emt 0:00:10]} 3. exd5 {[%emt 0:00:06]} cxd5 {[%emt 0:00:07]} 4. c4 {[%emt 0:00:08]} Nf6 {[%emt 0:00:06]} 5. Nc3 {[%emt 0:00:10]} Nc6 {[%emt 0:00:12]} 6. Bg5 {[%emt 0:00:16]} e6 {[%emt 0:01:59]} 7. c5 {[%emt 0:00:43]} g6 {[%emt 0:02:02]} 8. Nb5 {[%emt 0:14:26]} Be7 {[%emt 0:12:39]} 9. Nf3 {[%emt 0:33:58]} a6 {[%emt 0:01:32]} 10. Nc3 {[%emt 0:01:56]} b6 {[%emt 0:07:46]} 11. b4 {[%emt 0:03:56]} Ne4 {[%emt 0:05:56]} 12. Bxe7 {[%emt 0:02:48]} Qxe7 {[%emt 0:10:03]} 13. Qc2 {[%emt 0:06:34]} Bb7 {[%emt 0:17:01]} 14. Rb1 {[%emt 0:02:23]} Rc8 {[%emt 0:04:23]} 15. Be2 {[%emt 0:08:31]} O-O {[%emt 0:06:10]} 16. O-O {[%emt 0:00:53]} bxc5 {[%emt 0:01:57]} 17. dxc5 {[%emt 0:03:32]} f5 {[%emt 0:04:59]} 18. Qb2 {[%emt 0:05:40]} Rcd8 {[%emt 0:07:15]} 19. Rbd1 {[%emt 0:00:47]} Qf6 {[%emt 0:00:42]} 20. Rd3 {[%emt 0:01:21]} a5 {[%emt 0:02:20]} 21. bxa5 {[%emt 0:01:34]} Ba6 {[%emt 0:00:30]} 22. Re3 {[%emt 0:07:17]} Bxe2 {[%emt 0:02:12]} 23. Qxe2 {[%emt 0:00:13]} Nxc3 {[%emt 0:00:26]} 24. Rxc3 {[%emt 0:00:08]} Qxc3 {[%emt 0:01:56]} 25. Qxe6+ {[%emt 0:00:06]} Kg7 {[%emt 0:02:10]} 26. Qxc6 {[%emt 0:00:21]} Qf6 {[%emt 0:01:11]} 27. Qb5 {[%emt 0:01:23]} Rb8 {[%emt 0:00:23]} 28. Qd3 {[%emt 0:01:10]} Rfd8 {[%emt 0:01:48]} 29. Nd4 {[%emt 0:00:37]} Rbc8 {[%emt 0:00:51]} 30. Rc1 {[%emt 0:01:18]} Qe7 {[%emt 0:03:28]} 31. Qc3 {[%emt 0:00:53]} Kf7 {[%emt 0:00:42]} 32. a4 {[%emt 0:00:46]} Re8 {[%emt 0:00:15]} 33. h3 {[%emt 0:00:26]} Ra8 {[%emt 0:01:34]} 34. Nb5 {[%emt 0:00:26]} Kg8 {[%emt 0:00:26]} 35. Nd6 {[%emt 0:00:25]} Red8 {[%emt 0:00:24]} 36. Re1 {[%emt 0:00:31]} d4 {[%emt 0:00:53]} 37. Qc4+ {[%emt 0:00:22]} Kf8 {[%emt 0:00:31]} 38. Rxe7 {[%emt 0:00:06]} Kxe7 {[%emt 0:00:11]} 39. Qf7# {[%emt 0:03:46]} 1-0

[Event "Swiss Youth-ch U14 2023"]
[Site "Olten"]
[Date "2023.05.27"]
[Round "3.5"]
[White "Delangle, Alexander"]
[Black "Breyer, Thierry"]
[Result "0-1"]
[ECO "B91"]
[WhiteElo "1621"]
[BlackElo "1697"]
[Annotator "NA RC"]
[PlyCount "124"]
[EventDate "2023.05.26"]
[EventType "swiss"]
[EventCountry "SUI"]
[SourceTitle "playchess.com"]
[Source "ChessBase"]
[SourceQuality "1"]
[TimeControl "5400+30"]

1. e4 {[%emt 0:00:06]} c5 {[%emt 0:00:05]} 2. Nf3 {[%emt 0:00:04]} d6 {[%emt 0:00:02]} 3. d4 {[%emt 0:00:12]} cxd4 {[%emt 0:00:07]} 4. Nxd4 {[%emt 0:00:10]} Nf6 {[%emt 0:00:08]} 5. Nc3 {[%emt 0:00:20]} a6 {[%emt 0:00:07]} 6. g3 {[%emt 0:00:19]} g6 {[%emt 0:09:35]} 7. Bg2 {[%emt 0:03:16]} Bg7 {[%emt 0:00:20]} 8. O-O {[%emt 0:02:06]} O-O {[%emt 0:00:25]} 9. a4 {[%emt 0:04:56]} Bd7 {[%emt 0:06:08]} 10. Be3 {[%emt 0:04:53]} Nc6 {[%emt 0:02:16]} 11. Nb3 {[%emt 0:06:12]} Ne5 {[%emt 0:11:25]} 12. Re1 {[%emt 0:07:40]} Qc7 {[%emt 0:11:02]} 13. Qe2 {[%emt 0:07:08]} Nc4 {[%emt 0:02:59]} 14. Bg5 {[%emt 0:14:18]} Be6 {[%emt 0:09:20]} 15. Nd5 {[%emt 0:04:18]} Bxd5 {[%emt 0:02:36]} 16. exd5 {[%emt 0:00:49]} h6 {[%emt 0:01:11]} 17. Bf4 {[%emt 0:02:37]} Nxb2 {[%emt 0:09:11]} 18. Bc1 {[%emt 0:09:32]} Nc4 {[%emt 0:16:27]} 19. Qxe7 {[%emt 0:02:18]} Nd7 {[%emt 0:00:59]} 20. Ra2 {[%emt 0:03:33]} Qd8 {[%emt 0:03:48]} 21. Qe2 {[%emt 0:08:03]} Re8 {[%emt 0:01:05]} 22. Be3 {[%emt 0:00:54]} Rc8 {[%emt 0:01:28]} 23. Nd2 {[%emt 0:03:03]} Nxd2 {[%emt 0:00:53]} 24. Qxd2 {[%emt 0:00:29]} Bc3 {[%emt 0:00:15]} 25. Qd1 {[%emt 0:00:27]} Bxe1 {[%emt 0:00:25]} 26. Qxe1 {[%emt 0:00:02]} h5 {[%emt 0:02:37]} 27. Bh3 {[%emt 0:01:13]} Rc4 {[%emt 0:01:14]} 28. Qf1 {[%emt 0:02:05]} b5 {[%emt 0:04:27]} 29. axb5 {[%emt 0:13:57]} axb5 {[%emt 0:00:06]} 30. Qb1 {[%emt 0:00:00]} b4 {[%emt 0:02:16]} 31. Bf1 {[%emt 0:00:00]} Rce4 {[%emt 0:01:04]} 32. Bg2 {[%emt 0:00:00]} Rc4 {[%emt 0:00:08]} 33. Bf1 {[%emt 0:00:00]} Rce4 {[%emt 0:00:02]} 34. Bg2 {[%emt 0:00:00]} Rxe3 {[%emt 0:01:25]} 35. fxe3 {[%emt 0:00:00]} Qb6 {[%emt 0:00:05]} 36. Ra1 {[%emt 0:00:00]} Qxe3+ {[%emt 0:00:41]} 37. Kh1 {[%emt 0:00:00]} Qc3 {[%emt 0:00:20]} 38. Qd1 {[%emt 0:00:00]} Re3 {[%emt 0:01:08]} 39. Qf1 {[%emt 0:00:00]} Ne5 {[%emt 0:00:40]} 40. Qf2 {[%emt 0:01:35]} Ng4 {[%emt 0:00:12]} 41. Qf1 {[%emt 0:00:46]} Kg7 {[%emt 0:00:31]} 42. h3 {[%emt 0:00:18]} Ne5 {[%emt 0:00:20]} 43. Kh2 {[%emt 0:00:43]} Rxg3 {[%emt 0:00:46]} 44. Ra7 {[%emt 0:00:31]} Rg5 {[%emt 0:00:55]} 45. Qf4 {[%emt 0:01:01]} Rf5 {[%emt 0:01:02]} 46. Qe4 {[%emt 0:00:42]} Rg5 {[%emt 0:00:22]} 47. Rb7 {[%emt 0:00:50]} Qg3+ {[%emt 0:00:24]} 48. Kh1 {[%emt 0:00:11]} Rf5 {[%emt 0:00:52]} 49. Rxb4 {[%emt 0:00:50]} Nf3 {[%emt 0:00:16]} 50. Bxf3 {[%emt 0:00:45]} Rxf3 {[%emt 0:00:14]} 51. Qe2 {[%emt 0:01:15]} Qxh3+ {[%emt 0:00:11]} 52. Kg1 {[%emt 0:00:07]} Rg3+ {[%emt 0:00:09]} 53. Kf2 {[%emt 0:00:09]} Rg2+ {[%emt 0:00:06]} 54. Ke1 {[%emt 0:00:02]} Qc3+ {[%emt 0:00:25]} 55. Kf1 {[%emt 0:00:23]} Rxe2 {[%emt 0:00:09]} 56. Kxe2 {[%emt 0:00:08]} Qxb4 {[%emt 0:00:04]} 57. c3 {[%emt 0:00:06]} Qxc3 {[%emt 0:00:07]} 58. Kf2 {[%emt 0:00:02]} h4 {[%emt 0:00:18]} 59. Kg2 {[%emt 0:00:02]} Qe3 {[%emt 0:00:10]} 60. Kh2 {[%emt 0:00:08]} h3 {[%emt 0:00:25]} 61. Kh1 {[%emt 0:00:05]} Qf3+ {[%emt 0:00:28]} 62. Kg1 {[%emt 0:00:02]} Qg2# {[%emt 0:00:08]} 0-1